bitfinex-derivatives/quotes_BTCF0:USTF0_20250602
["timestamp","ask_amount","ask_price","bid_price","bid_amount"]
[1748837728266,0.06864954,105050.0,105040.0,1.49630149]
[1748837728964,0.06864954,105050.0,105040.0,1.4872858]
[1748837729859,0.06864954,105050.0,105040.0,1.48737059]
[1748837731560,0.10174954,105050.0,105040.0,1.48737059]
[1748837731961,0.06844954,105050.0,105040.0,1.48737059]
[1748837732169,0.06844954,105050.0,105040.0,1.53151877]
[1748837732868,0.06844954,105050.0,105040.0,1.5411894]
[1748837734868,0.09884954,105050.0,105040.0,1.5411894]
[1748837735073,0.09884954,105050.0,105040.0,1.5410694]
[1748837736168,0.09884954,105050.0,105040.0,1.5998239]
[1748837737561,0.09884954,105050.0,105040.0,1.55567572]
[1748837738466,0.09884954,105050.0,105040.0,1.59837907]
[1748837738673,0.09884954,105050.0,105040.0,1.64398461]
[1748837738973,0.09884954,105050.0,105040.0,1.59837907]
[1748837739276,0.09884954,105050.0,105040.0,1.64398688]
[1748837739472,0.09884954,105050.0,105040.0,1.82398688]
[1748837740173,0.64995034,105050.0,105040.0,0.20383528]
[1748837740377,0.86120587,105050.0,105040.0,0.20641645]
[1748837740675,1.11120587,105050.0,105040.0,0.09329661]
[1748837741277,0.86120587,105050.0,105040.0,0.09329661]
[1748837741477,0.86120587,105050.0,105040.0,0.28261571]
[1748837741779,0.86520587,105050.0,105040.0,0.28061571]
[1748837742870,0.86520587,105050.0,105040.0,0.28054723]
[1748837743068,0.86520587,105050.0,105040.0,0.28530723]
[1748837745176,0.74914634,105050.0,105040.0,0.28530723]
[1748837745373,0.74914634,105050.0,105040.0,0.31790723]
[1748837746981,0.74914634,105050.0,105040.0,0.12758813]
[1748837747374,0.74914634,105050.0,105040.0,0.12757149]
[1748837748281,0.74914634,105050.0,105040.0,0.12757249]
[1748837748480,0.86520587,105050.0,105040.0,0.12757249]
[1748837748881,0.86520587,105050.0,105040.0,0.08288369]
[1748837749182,0.74914634,105050.0,105040.0,0.27320269]
[1748837749371,0.85042634,105050.0,105040.0,0.27320269]
[1748837749571,0.85022634,105050.0,105040.0,0.62320269]
[1748837749771,0.75523034,105050.0,105040.0,0.62320269]
[1748837750189,0.75503034,105050.0,105040.0,0.62320269]
[1748837750381,0.75523034,105050.0,105040.0,0.62320269]
[1748837750685,0.65395034,105050.0,105040.0,0.64049907]
[1748837751789,0.65395034,105050.0,105040.0,0.59497538]
[1748837752180,0.65395034,105050.0,105040.0,0.64049336]
[1748837753190,0.65395034,105050.0,105040.0,0.67059336]
[1748837753585,0.65395034,105050.0,105040.0,0.62507538]
[1748837753783,0.29315034,105050.0,105040.0,0.67058766]
[1748837754582,0.65395034,105050.0,105040.0,0.67058766]
[1748837755685,0.65395034,105050.0,105040.0,0.78664719]
[1748837755990,0.62355034,105050.0,105040.0,0.78664658]
[1748837756186,0.59025034,105050.0,105040.0,0.81864658]
[1748837756381,0.59045034,105050.0,105040.0,0.81864658]
[1748837756782,0.55955034,105050.0,105040.0,0.81864658]
[1748837756991,0.55755034,105050.0,105040.0,0.81864658]
[1748837757292,0.55555034,105050.0,105040.0,0.81864658]
[1748837757895,0.19475034,105050.0,105040.0,1.61524658]
[1748837758091,0.19455034,105050.0,105040.0,1.61524658]
[1748837758392,0.19475034,105050.0,105040.0,1.61524658]
[1748837759288,0.00444954,105050.0,105040.0,1.61524658]
[1748837759494,0.00444954,105050.0,105040.0,1.27524658]
[1748837759690,0.19455054,105050.0,105040.0,1.27524658]
[1748837759993,0.19475054,105050.0,105040.0,1.27524658]
[1748837760491,0.19475054,105050.0,105040.0,1.27824115]
[1748837761091,0.19475054,105050.0,105040.0,0.84244115]
[1748837761282,0.19475054,105050.0,105040.0,1.27824115]
[1748837761484,0.19475054,105050.0,105040.0,1.58824115]
[1748837761485,0.25725054,105050.0,105040.0,1.58824115]
[1748837762095,0.25725054,105050.0,105040.0,1.15244115]
[1748837762297,0.22475054,105050.0,105040.0,1.61824115]
[1748837762589,0.00444954,105050.0,105040.0,1.61824115]
[1748837762799,0.00444954,105050.0,105040.0,1.18244115]
[1748837762980,0.00444954,105050.0,105040.0,1.57824115]
[1748837763186,0.00444954,105050.0,105040.0,1.57822727]
[1748837763687,0.00424954,105050.0,105040.0,1.57822727]
[1748837763888,0.00444954,105050.0,105040.0,1.57822727]
[1748837764383,0.19475054,105050.0,105040.0,1.57822727]
[1748837764895,0.19475054,105050.0,105040.0,1.62260298]
[1748837765492,0.19475054,105050.0,105040.0,1.07074345]
[1748837765796,0.19475054,105050.0,105040.0,0.39994345]
[1748837766098,0.28815054,105050.0,105040.0,0.39994345]
[1748837766387,0.28815054,105050.0,105040.0,0.35556774]
[1748837767488,0.28815054,105050.0,105040.0,0.40107937]
[1748837768183,0.28815054,105050.0,105040.0,0.35558701]
[1748837768381,0.25725054,105050.0,105040.0,0.47164654]
[1748837769591,0.25725054,105050.0,105040.0,0.51605577]
[1748837769792,0.61805054,105050.0,105040.0,0.47054414]
[1748837769993,0.25725054,105050.0,105040.0,0.47054414]
[1748837770187,0.25725054,105050.0,105040.0,0.51607033]
[1748837771796,0.25725054,105050.0,105040.0,0.56162265]
[1748837772187,0.65095054,105050.0,105040.0,0.56162265]
[1748837772686,0.65095054,105050.0,105040.0,0.32577746]
[1748837772886,0.76701007,105050.0,105040.0,0.32361494]
[1748837773395,0.65095054,105050.0,105040.0,0.32361494]
[1748837774192,0.65095054,105050.0,105040.0,0.35421494]
[1748837774397,0.65095054,105050.0,105040.0,0.47027447]
[1748837775000,0.75223054,105050.0,105040.0,0.47027447]
[1748837775997,0.76341054,105050.0,105040.0,0.47027447]
[1748837776198,0.76341054,105050.0,105040.0,0.42473501]
[1748837776402,0.76341054,105050.0,105040.0,0.47028887]
[1748837779000,0.66213054,105050.0,105040.0,0.47028887]
[1748837779794,0.20593054,105050.0,105040.0,0.47028887]
[1748837780209,0.20593054,105050.0,105040.0,0.50028887]
[1748837780597,0.20593054,105050.0,105040.0,0.50029456]
[1748837780598,0.20573054,105050.0,105040.0,0.50029456]
[1748837780797,0.20593054,105050.0,105040.0,0.50029456]
[1748837781603,0.20593044,105050.0,105040.0,0.50029456]
[1748837781803,0.20593044,105050.0,105040.0,0.5447367]
[1748837782195,0.20593044,105050.0,105040.0,0.38423503]
[1748837782397,0.23613044,105050.0,105040.0,0.81029456]
[1748837782593,0.71278997,105050.0,105040.0,0.10591955]
[1748837782794,0.9979882,105050.0,105040.0,0.05220214]
[1748837783202,0.9979882,105050.0,105040.0,0.00776]
[1748837783203,0.9981882,105050.0,105040.0,0.00776]
[1748837785103,0.88212867,105050.0,105040.0,0.00776]
[1748837785509,0.9981882,105050.0,105040.0,0.00776]
[1748837787507,0.9981882,105050.0,105040.0,0.03876]
[1748837788008,0.88212867,105050.0,105040.0,0.03876]
[1748837791509,0.9981882,105050.0,105040.0,0.03876]
[1748837791711,0.77898997,105050.0,105040.0,0.03876]
[1748837791911,0.1903191,105040.0,105030.0,0.00014297]
[1748837792219,0.1903372,105030.0,105020.0,0.0002]
[1748837792399,0.20948958,105020.0,105010.0,0.04655273]
[1748837792698,1.83092911,105020.0,105010.0,0.04655273]
[1748837792898,0.1903916,105000.0,104990.0,0.30994035]
[1748837793099,0.1903916,105000.0,104990.0,0.0617]
[1748837793100,0.76853113,105000.0,104990.0,0.0617]
[1748837793414,0.83323113,105000.0,104990.0,0.29768188]
[1748837793808,0.83323113,105000.0,104990.0,0.2521097]
[1748837794203,0.83423113,105000.0,104990.0,0.2678697]
[1748837794405,0.7181716,105000.0,104990.0,0.2678697]
[1748837795227,0.7191716,105000.0,104990.0,0.2788697]
[1748837795409,0.7521716,105000.0,104990.0,0.2788697]
[1748837797506,0.6508916,105000.0,104990.0,0.39492923]
[1748837797712,1.1893316,105000.0,104990.0,0.40492923]
[1748837802818,1.1895316,105000.0,104990.0,0.40492923]
[1748837810323,1.1564516,105000.0,104990.0,0.40492923]
[1748837810519,1.16070114,105000.0,104990.0,0.40492923]
[1748837813927,0.67058114,105000.0,104990.0,0.4499438]
[1748837817428,0.70298114,105000.0,104990.0,0.40492923]
[1748837817738,0.70298114,105000.0,104990.0,0.4500012]
[1748837818325,0.34218114,105000.0,104990.0,0.4500012]
[1748837819729,0.30978114,105000.0,104990.0,0.4500012]
[1748837821635,0.30978114,105000.0,104990.0,0.50921141]
[1748837822628,0.30978114,105000.0,104990.0,0.54556357]
[1748837822829,0.30978114,105000.0,104990.0,0.54573664]
[1748837823026,0.33988114,105000.0,104990.0,0.54573664]
[1748837827231,0.33988114,105000.0,104990.0,0.54575198]
[1748837828537,0.30978114,105000.0,104990.0,0.54575198]
[1748837829034,0.30978114,105000.0,104990.0,0.63388373]
[1748837829432,0.30978114,105000.0,104990.0,0.62388373]
[1748837830133,0.33998114,105000.0,104990.0,0.62388373]
[1748837830533,0.23818114,105000.0,104990.0,0.53575198]
[1748837830829,0.20798114,105000.0,104990.0,0.53575198]
[1748837831336,0.20798114,105000.0,104990.0,0.4904916]
[1748837831531,0.20798114,105000.0,104990.0,0.56635376]
[1748837831840,0.20798114,105000.0,104990.0,0.47079139]
[1748837832323,0.01758954,105000.0,104990.0,0.83159139]
[1748837832524,0.01758954,105000.0,104990.0,0.8908016]
[1748837832825,0.01758954,105000.0,104990.0,1.87085368]
[1748837833026,0.00014297,105010.0,105000.0,0.20753367]
[1748837833235,0.00014297,105010.0,105000.0,1.77837816]
[1748837833435,0.00014297,105010.0,105000.0,1.72983716]
[1748837833629,0.00034297,105010.0,105000.0,1.77834417]
[1748837834427,0.00034297,105010.0,105000.0,1.72983716]
[1748837834930,0.00034297,105010.0,105000.0,1.81894039]
[1748837835334,0.00034297,105010.0,105000.0,1.82794039]
[1748837835335,0.00134297,105010.0,105000.0,1.82794039]
[1748837835535,0.00134297,105010.0,105000.0,1.92793239]
[1748837835732,0.00134297,105010.0,105000.0,1.92784162]
[1748837836143,0.00134297,105010.0,105000.0,1.95904162]
[1748837837643,0.00134297,105010.0,105000.0,1.86380962]
[1748837839444,0.7486579,105030.0,105020.0,0.20770059]
[1748837839744,0.7486579,105030.0,105020.0,0.32376012]
[1748837840041,0.7486579,105030.0,105020.0,0.38876012]
[1748837840742,0.3878579,105030.0,105020.0,0.38876012]
[1748837841344,0.3878579,105030.0,105020.0,0.43575757]
[1748837841541,0.16482,105030.0,105020.0,0.7965605]
[1748837841845,0.0022,105030.0,105020.0,0.8375605]
[1748837842145,0.002,105030.0,105020.0,0.8375605]
[1748837842446,0.0022,105030.0,105020.0,0.8375605]
[1748837843439,0.0022,105030.0,105020.0,1.1475605]
[1748837845451,0.0022,105030.0,105020.0,0.8775605]
[1748837845950,0.1925372,105030.0,105020.0,0.8775605]
[1748837846155,0.0349,105030.0,105020.0,0.8775605]
[1748837847635,0.0349,105030.0,105020.0,0.88689309]
[1748837848842,0.0349,105030.0,105020.0,0.88686916]
[1748837849251,0.0349,105030.0,105020.0,0.89162916]
[1748837850951,0.0349,105030.0,105020.0,1.33034916]
[1748837851140,0.2252372,105030.0,105020.0,1.33034916]
[1748837851551,0.0349,105030.0,105020.0,1.33034916]
[1748837851848,0.2560371,105030.0,105020.0,0.43563704]
[1748837852145,0.2870371,105030.0,105020.0,0.52149657]
[1748837852454,0.2870371,105030.0,105020.0,0.48929657]
[1748837853055,0.2870371,105030.0,105020.0,0.48918678]
[1748837854255,0.29128664,105030.0,105020.0,0.48918678]
[1748837855048,0.65208664,105030.0,105020.0,0.48918678]
[1748837855956,0.65208664,105030.0,105020.0,0.34032725]
[1748837857554,0.65208664,105030.0,105020.0,0.29546059]
[1748837857854,0.65208664,105030.0,105020.0,0.34035757]
[1748837858553,0.65208664,105030.0,105020.0,0.15000227]
[1748837858859,1.20670617,105030.0,105020.0,0.13265698]
[1748837859060,1.20670617,105030.0,105020.0,0.05265698]
[1748837860465,1.30192217,105030.0,105020.0,0.00776]
[1748837861860,1.30192217,105030.0,105020.0,0.05274157]
[1748837864553,1.20670617,105030.0,105020.0,0.05274157]
[1748837864748,1.56750617,105030.0,105020.0,0.05274157]
[1748837865261,1.56750617,105030.0,105020.0,0.00776]
[1748837870862,1.45144664,105030.0,105020.0,0.00776]
[1748837871166,1.56750617,105030.0,105020.0,0.00776]
[1748837873469,0.84590617,105030.0,105020.0,0.00776]
[1748837873769,1.56750617,105030.0,105020.0,0.00776]
[1748837879476,1.56750617,105030.0,105020.0,0.03866]
[1748837879769,1.56750617,105030.0,105020.0,0.00776]
[1748837880572,1.6854244,105030.0,105020.0,0.00776]
[1748837881971,1.13080487,105030.0,105020.0,0.01776]
[1748837882170,1.13080487,105030.0,105020.0,0.11076]
[1748837882171,1.67152487,105030.0,105020.0,0.11076]
[1748837882682,1.7873844,105030.0,105020.0,0.11076]
[1748837882868,1.7875844,105030.0,105020.0,0.11076]
[1748837888480,1.93606326,105030.0,105020.0,0.11076]
[1748837889284,1.81706396,105030.0,105020.0,0.11076]
[1748837889486,1.16028443,105030.0,105020.0,0.11076]
[1748837889783,1.70128443,105030.0,105020.0,0.11076]
[1748837889988,1.06578443,105030.0,105020.0,0.3011153]
[1748837890170,1.60702443,105030.0,105020.0,0.41717483]
[1748837890676,1.60682443,105030.0,105020.0,0.41717483]
[1748837890881,1.60702443,105030.0,105020.0,0.3011153]
[1748837891177,1.28740864,105030.0,105020.0,0.3011153]
[1748837891383,1.72596864,105030.0,105020.0,0.3011153]
[1748837891591,1.57857085,105030.0,105020.0,0.3011153]
[1748837893884,1.69463038,105030.0,105020.0,0.11076]
[1748837894087,1.79133038,105030.0,105020.0,0.07886]
[1748837894291,1.67230617,105030.0,105020.0,0.06886]
[1748837894488,1.67230617,105030.0,105020.0,0.00776]
[1748837894489,1.93576349,105030.0,105020.0,0.00776]
[1748837894688,1.7883657,105030.0,105020.0,0.00776]
[1748837895104,1.90740099,105030.0,105020.0,0.00776]
[1748837895399,1.78848292,105030.0,105020.0,0.00776]
[1748837896299,1.90748522,105030.0,105020.0,0.00776]
[1748837897194,1.9074805,105030.0,105020.0,0.00776]
[1748837900102,1.67524894,105030.0,105020.0,0.00776]
[1748837900304,1.9074805,105030.0,105020.0,0.00776]
[1748837901799,1.7884782,105030.0,105020.0,0.00776]
[1748837901999,1.93587599,105030.0,105020.0,0.00776]
[1748837902494,1.81976021,105030.0,105020.0,0.00776]
[1748837904402,1.93587599,105030.0,105020.0,0.00776]
[1748837904704,1.90742918,105030.0,105020.0,0.00776]
[1748837905406,0.30647118,105020.0,105010.0,0.03084297]
[1748837905706,0.89937726,105020.0,105010.0,0.03084297]
[1748837905908,0.89937726,105020.0,105010.0,0.00014297]
[1748837906208,0.89937726,105020.0,105010.0,0.00034297]
[1748837906406,0.89937726,105020.0,105010.0,0.00334297]
[1748837906708,0.89937726,105020.0,105010.0,0.00634297]
[1748837910108,1.33761726,105020.0,105010.0,0.00634297]
[1748837910309,1.44041726,105020.0,105010.0,0.03884297]
[1748837910505,1.44041726,105020.0,105010.0,0.06954297]
[1748837910706,1.44061726,105020.0,105010.0,0.10244297]
[1748837910910,0.89957726,105020.0,105010.0,0.10244297]
[1748837911210,1.44041726,105020.0,105010.0,0.10244297]
[1748837911707,1.44061726,105020.0,105010.0,0.10244297]
[1748837912508,1.32450148,105020.0,105010.0,0.10244297]
[1748837912809,1.44061726,105020.0,105010.0,0.10244297]
[1748837913510,1.80141726,105020.0,105010.0,0.10244297]
[1748837915108,2.88173726,105020.0,105010.0,0.10244297]
[1748837916010,2.8859868,105020.0,105010.0,0.10244297]
[1748837918514,2.91443506,105020.0,105010.0,0.10244297]
[1748837921218,2.91442626,105020.0,105010.0,0.10244297]
[1748837923721,3.03053324,105020.0,105010.0,0.10244297]
[1748837924019,2.91442626,105020.0,105010.0,0.10244297]
[1748837924217,2.76702847,105020.0,105010.0,0.10244297]
[1748837924427,2.88313545,105020.0,105010.0,0.10244297]
[1748837925119,2.76702847,105020.0,105010.0,0.10244297]
[1748837927315,2.91442626,105020.0,105010.0,0.10244297]
[1748837928023,3.03053324,105020.0,105010.0,0.10244297]
[1748837931425,3.14948699,105020.0,105010.0,0.10244297]
[1748837931731,3.0020892,105020.0,105010.0,0.10244297]
[1748837934233,3.03053324,105020.0,105010.0,0.10244297]
[1748837935730,2.91442626,105020.0,105010.0,0.10244297]
[1748837936326,2.76702847,105020.0,105010.0,0.10244297]
[1748837937228,2.91442626,105020.0,105010.0,0.07174297]
[1748837937433,2.88313545,105020.0,105010.0,0.07174297]
[1748837937634,3.03053324,105020.0,105010.0,0.07174297]
[1748837938027,2.88313545,105020.0,105010.0,0.07174297]
[1748837939227,2.88313545,105020.0,105010.0,0.07154297]
[1748837940135,1.80281545,105020.0,105010.0,0.07154297]
[1748837943034,1.68670847,105020.0,105010.0,0.07154297]
[1748837944742,2.76706847,105020.0,105010.0,0.07154297]
[1748837945342,2.91446626,105020.0,105010.0,0.07154297]
[1748837946140,2.91446626,105020.0,105010.0,0.10424297]
[1748837946339,3.03057324,105020.0,105010.0,0.07154297]
[1748837946641,3.03057324,105020.0,105010.0,0.07174297]
[1748837947442,2.91446626,105020.0,105010.0,0.06874297]
[1748837947643,2.91646626,105020.0,105010.0,0.06574297]
[1748837948336,3.03257324,105020.0,105010.0,0.06574297]
[1748837949646,1.95221324,105020.0,105010.0,0.03284297]
[1748837951734,0.1903734,105010.0,105000.0,0.031]
[1748837951933,0.1903916,105000.0,104990.0,0.0301]
[1748837952141,1.32196134,105000.0,104990.0,0.0611]
[1748837952346,1.44104357,105000.0,104990.0,0.1060433]
[1748837953140,1.44104357,105000.0,104990.0,0.0631]
[1748837953346,1.44104357,105000.0,104990.0,0.10800514]
[1748837953743,1.44104357,105000.0,104990.0,0.11000514]
[1748837954447,1.48902868,105000.0,104990.0,0.11000514]
[1748837954850,1.4985456,105000.0,104990.0,0.11000514]
[1748837955049,1.4985456,105000.0,104990.0,0.14090514]
[1748837955548,1.4985456,105000.0,104990.0,0.04890514]
[1748837955945,1.61465258,105000.0,104990.0,0.004]
[1748837956250,1.61465258,105000.0,104990.0,0.0672]
[1748837956449,1.4985456,105000.0,104990.0,0.0672]
[1748837957252,1.37946337,105000.0,104990.0,0.0672]
[1748837960058,1.4985456,105000.0,104990.0,0.0672]
[1748837960453,1.49557035,105000.0,104990.0,0.0672]
[1748837960656,0.1904097,104990.0,104980.0,0.00223861]
[1748837960854,1.19977668,104990.0,104980.0,0.00223861]
[1748837961055,0.76321668,104990.0,104980.0,0.00223861]
[1748837961357,2.28029668,104990.0,104980.0,0.00223861]
[1748837961554,2.28029668,104990.0,104980.0,0.00243861]
[1748837961754,2.39937891,104990.0,104980.0,0.00243861]
[1748837961954,2.39937891,104990.0,104980.0,0.00643861]
[1748837962459,2.39937891,104990.0,104980.0,0.00943861]
[1748837963256,2.28327193,104990.0,104980.0,0.00943861]
[1748837963463,2.39937891,104990.0,104980.0,0.00943861]
[1748837963663,2.28327193,104990.0,104980.0,0.00943861]
[1748837963865,2.39937891,104990.0,104980.0,0.00943861]
[1748837964359,2.50169891,104990.0,104980.0,0.00943861]
[1748837964565,2.50169891,104990.0,104980.0,0.10633861]
[1748837965266,2.5017602,104990.0,104980.0,0.10633861]
[1748837966862,1.9628002,104990.0,104980.0,0.10633861]
[1748837967061,2.5018002,104990.0,104980.0,0.10633861]
[1748837967366,1.9628002,104990.0,104980.0,0.10633861]
[1748837967556,2.5019602,104990.0,104980.0,0.10633861]
[1748837969260,2.8627602,104990.0,104980.0,0.10633861]
[1748837969973,2.8627602,104990.0,104980.0,0.07493861]
[1748837970470,2.8627602,104990.0,104980.0,0.00943861]
[1748837970660,2.8627602,104990.0,104980.0,0.00923861]
[1748837970861,2.8627602,104990.0,104980.0,0.00943861]
[1748837971558,0.20976838,104980.0,104970.0,0.0618]
[1748837971763,0.78173665,104980.0,104970.0,0.0618]
[1748837972871,0.42093665,104980.0,104970.0,0.0648]
[1748837973059,0.78173665,104980.0,104970.0,0.0648]
[1748837975869,0.78598619,104980.0,104970.0,0.0648]
[1748837979672,0.42518619,104980.0,104970.0,0.0648]
[1748837979866,0.78598619,104980.0,104970.0,0.0648]
[1748837981064,0.90506842,104980.0,104970.0,0.0648]
[1748837981865,0.78598619,104980.0,104970.0,0.0648]
[1748837984075,1.22302619,104980.0,104970.0,0.0648]
[1748837985276,1.22304295,104980.0,104970.0,0.0648]
[1748837985666,1.22304295,104980.0,104970.0,0.0966]
[1748837988078,0.90508518,104980.0,104970.0,0.0966]
[1748837988276,1.34192518,104980.0,104970.0,0.0966]
[1748837989165,1.34192518,104980.0,104970.0,0.14153649]
[1748837991585,0.00424954,104980.0,104970.0,1.22547606]
[1748837991773,0.00424954,104980.0,104970.0,1.76078372]
[1748837991976,0.00424954,104980.0,104970.0,1.71616974]
[1748837992679,0.00424954,104980.0,104970.0,1.37616974]
[1748837993181,0.19467734,104980.0,104970.0,1.33984962]
[1748837994081,0.19467734,104980.0,104970.0,1.38439526]
[1748837994681,0.19467734,104980.0,104970.0,1.26821023]
[1748837995285,0.19467734,104980.0,104970.0,1.26815701]
[1748837995972,0.19467734,104980.0,104970.0,1.26807266]
[1748837997176,0.19467734,104980.0,104970.0,1.01807266]
[1748837999085,0.19467734,104980.0,104970.0,0.95865456]
[1748838000480,0.19467734,104980.0,104970.0,0.59785456]
[1748838000685,0.19467734,104980.0,104970.0,0.95865456]
[1748838001578,0.19467734,104980.0,104970.0,0.95885456]
[1748838003185,0.19467734,104980.0,104970.0,1.00363972]
[1748838003988,0.19467734,104980.0,104970.0,0.95875999]
[1748838006182,0.19467734,104980.0,104970.0,0.84262818]
[1748838006489,0.19467734,104980.0,104970.0,0.86349999]
[1748838006681,0.22487734,104980.0,104970.0,0.86349999]
[1748838010991,0.22487734,104980.0,104970.0,0.81900993]
[1748838011187,0.25697734,104980.0,104970.0,0.81900993]
[1748838011393,0.28977734,104980.0,104970.0,0.81900993]
[1748838011985,0.28977734,104980.0,104970.0,0.81901563]
[1748838014184,0.28977734,104980.0,104970.0,0.86351152]
[1748838015081,0.28977734,104980.0,104970.0,0.81901563]
[1748838015491,0.28977734,104980.0,104970.0,0.86351152]
[1748838015991,0.28977734,104980.0,104970.0,0.81901563]
[1748838016192,0.28977734,104980.0,104970.0,0.86351152]
[1748838016388,0.28977734,104980.0,104970.0,0.77417781]
[1748838016695,0.28977734,104980.0,104970.0,0.86355486]
[1748838017194,0.28977734,104980.0,104970.0,0.86358736]
[1748838018095,0.28977734,104980.0,104970.0,0.86338736]
[1748838018290,0.28977734,104980.0,104970.0,0.86358736]
[1748838020796,0.28977734,104980.0,104970.0,0.50278736]
[1748838021000,0.28977734,104980.0,104970.0,0.9230973]
[1748838021198,0.28977734,104980.0,104970.0,0.91485421]
[1748838025309,0.28977734,104980.0,104970.0,0.91488752]
[1748838028202,0.28977734,104980.0,104970.0,1.00367236]
[1748838028403,0.28977734,104980.0,104970.0,0.91488752]
[1748838029001,0.28977734,104980.0,104970.0,1.00367236]
[1748838029907,0.28977734,104980.0,104970.0,1.00366516]
[1748838031098,0.28977734,104980.0,104970.0,0.95947019]
[1748838033502,0.28977734,104980.0,104970.0,0.59867019]
[1748838033711,0.28977734,104980.0,104970.0,0.95947019]
[1748838034304,0.28977734,104980.0,104970.0,0.95947602]
[1748838034804,0.25697734,104980.0,104970.0,0.95947602]
[1748838035000,0.22487734,104980.0,104970.0,0.95947602]
[1748838035201,0.00424954,104980.0,104970.0,1.07564033]
[1748838035397,0.19467724,104980.0,104970.0,1.07564033]
[1748838035914,0.19467724,104980.0,104970.0,1.00366861]
[1748838038507,0.19467724,104980.0,104970.0,0.86994853]
[1748838038704,0.19467724,104980.0,104970.0,0.91487738]
[1748838039704,0.00424954,104980.0,104970.0,1.11982653]
[1748838039903,0.00424954,104980.0,104970.0,1.48982653]
[1748838041314,0.00424954,104980.0,104970.0,1.25982653]
[1748838045314,0.00424954,104980.0,104970.0,1.43982653]
[1748838047018,0.00424954,104980.0,104970.0,1.07902653]
[1748838047516,0.00424954,104980.0,104970.0,1.43981537]
[1748838048919,0.00424954,104980.0,104970.0,1.07901537]
[1748838049114,0.00424954,104980.0,104970.0,1.43981328]
[1748838049320,0.00424954,104980.0,104970.0,1.43961328]
[1748838051414,0.19467734,104980.0,104970.0,1.43961328]
[1748838051922,0.00424954,104980.0,104970.0,1.39469768]
[1748838052117,0.00424954,104980.0,104970.0,1.43960937]
[1748838052620,0.19467734,104980.0,104970.0,1.87608937]
[1748838053017,0.19467734,104980.0,104970.0,1.75992506]
[1748838054017,0.19467734,104980.0,104970.0,1.39912506]
[1748838054322,0.19467734,104980.0,104970.0,1.75992506]
[1748838055517,0.19467734,104980.0,104970.0,1.80847972]
[1748838055722,0.19467734,104980.0,104970.0,1.75997271]
[1748838056317,0.19467734,104980.0,104970.0,1.71506102]
[1748838056520,0.19467734,104980.0,104970.0,1.8084805]
[1748838057016,0.19467734,104980.0,104970.0,1.75997349]
[1748838057420,0.19467734,104980.0,104970.0,1.8084805]
[1748838058124,0.19467734,104980.0,104970.0,1.75997349]
[1748838058317,0.19467734,104980.0,104970.0,1.8084805]
[1748838060325,0.19467734,104980.0,104970.0,1.77211273]
[1748838061227,0.19467734,104980.0,104970.0,1.81668172]
[1748838061624,0.19467734,104980.0,104970.0,1.80454413]
[1748838063424,0.19467734,104980.0,104970.0,1.75997514]
[1748838063731,0.19467734,104980.0,104970.0,1.75998079]
[1748838063932,0.19467734,104980.0,104970.0,1.8761451]
[1748838064427,0.19467734,104980.0,104970.0,1.75998079]
[1748838064627,0.19467734,104980.0,104970.0,1.64381648]
[1748838064830,0.19467734,104980.0,104970.0,1.75998079]
[1748838065031,0.22647734,104980.0,104970.0,1.76474079]
[1748838066034,0.22647734,104980.0,104970.0,1.67595595]
[1748838067331,0.00014297,104990.0,104980.0,0.1904278]
[1748838067536,0.00014297,104990.0,104980.0,1.48579824]
[1748838067734,0.00014297,104990.0,104980.0,1.45873901]
[1748838068128,0.00014297,104990.0,104980.0,1.6252372]
[1748838068633,0.00014297,104990.0,104980.0,1.46797845]
[1748838068634,0.00214297,104990.0,104980.0,1.46797845]
[1748838069140,0.00214297,104990.0,104980.0,1.67228983]
[1748838069326,0.25385257,104990.0,104980.0,1.45845414]
[1748838069527,0.28665257,104990.0,104980.0,1.45845414]
[1748838069833,0.28665257,104990.0,104980.0,1.36934906]
[1748838070026,0.28665257,104990.0,104980.0,1.48551337]
[1748838071023,0.28665257,104990.0,104980.0,1.36934906]
[1748838071223,0.28665257,104990.0,104980.0,1.09765414]
[1748838071430,0.09624297,104990.0,104980.0,1.45845414]
[1748838071632,0.28665267,104990.0,104980.0,1.45845414]
[1748838072634,0.28665267,104990.0,104980.0,1.45888023]
[1748838072836,0.09624297,104990.0,104980.0,1.45888023]
[1748838073835,0.28665257,104990.0,104980.0,1.45888023]
[1748838074438,0.09624297,104990.0,104980.0,1.45888023]
[1748838074731,0.28665257,104990.0,104980.0,0.86533902]
[1748838074931,0.40281688,104990.0,104980.0,0.82849825]
[1748838075236,0.42187199,104990.0,104980.0,0.43114295]
[1748838075436,0.42187199,104990.0,104980.0,0.41134295]
[1748838075735,0.42187199,104990.0,104980.0,0.45586774]
[1748838076137,0.42187199,104990.0,104980.0,0.81666774]
[1748838076646,0.30570768,104990.0,104980.0,0.81666774]
[1748838076835,0.30570768,104990.0,104980.0,0.82609245]
[1748838077230,0.40726768,104990.0,104980.0,0.70992814]
[1748838077533,0.30570768,104990.0,104980.0,0.78156766]
[1748838077734,0.30570768,104990.0,104980.0,0.9422594]
[1748838077940,0.30570768,104990.0,104980.0,1.0363594]
[1748838078140,0.30570768,104990.0,104980.0,0.99183197]
[1748838078342,0.30570768,104990.0,104980.0,0.87566766]
[1748838078530,0.11529808,104990.0,104980.0,1.01183197]
[1748838078835,0.30570778,104990.0,104980.0,1.05636554]
[1748838079045,0.30370778,104990.0,104980.0,1.05636554]
[1748838079229,0.30170778,104990.0,104980.0,1.05736554]
[1748838079424,0.30170778,104990.0,104980.0,0.94120123]
[1748838080332,0.30595732,104990.0,104980.0,0.94120123]
[1748838080933,0.30595732,104990.0,104980.0,0.58040123]
[1748838081337,0.30595732,104990.0,104980.0,0.58038378]
[1748838081542,0.30595732,104990.0,104980.0,0.52581599]
[1748838081844,0.30595732,104990.0,104980.0,0.57098478]
[1748838083247,0.30595732,104990.0,104980.0,0.36073792]
[1748838083543,0.30595732,104990.0,104980.0,0.36053792]
[1748838083938,0.30595732,104990.0,104980.0,0.36073792]
[1748838084151,0.30595732,104990.0,104980.0,0.37011929]
[1748838085135,0.30595732,104990.0,104980.0,0.36073792]
[1748838085338,0.30795732,104990.0,104980.0,0.35973792]
[1748838085642,0.30795732,104990.0,104980.0,0.35953792]
[1748838085952,0.30995732,104990.0,104980.0,0.35975105]
[1748838087147,0.30995732,104990.0,104980.0,0.47589791]
[1748838087536,0.30995732,104990.0,104980.0,0.50769791]
[1748838088540,0.30995732,104990.0,104980.0,0.57009791]
[1748838090147,0.30995732,104990.0,104980.0,0.57485791]
[1748838090740,0.30995732,104990.0,104980.0,0.61121321]
[1748838093147,0.30995732,104990.0,104980.0,0.56666947]
[1748838094849,0.30995732,104990.0,104980.0,0.56669192]
[1748838096751,0.30995732,104990.0,104980.0,0.45054506]
[1748838096952,0.30995732,104990.0,104980.0,0.56669192]
[1748838099255,0.30995732,104990.0,104980.0,0.5667049]
[1748838101447,0.30995732,104990.0,104980.0,0.61128936]
[1748838101648,0.30995732,104990.0,104980.0,0.57493406]
[1748838103048,0.30995732,104990.0,104980.0,0.61128936]
[1748838103248,0.30995732,104990.0,104980.0,0.611296]
[1748838103858,0.30995732,104990.0,104980.0,0.61132618]